bitfinex-derivatives/quotes_ETHF0:USTF0_20230403
["timestamp","ask_amount","ask_price","bid_price","bid_amount"]
[1680555922660,3.2078,1780.6,1780.1,3.2078]
[1680555923260,7.7098,1780.6,1779.7,3.2078]
[1680555923659,3.2078,1780.4,1779.7,3.2078]
[1680555924062,3.2078,1780.2,1779.4,3.2078]
[1680555924570,3.2078,1780.0,1779.4,3.2078]
[1680555924868,3.2078,1779.8,1779.4,3.2078]
[1680555925257,3.2078,1779.8,1779.1,3.2078]
[1680555925565,7.7098,1779.8,1779.1,3.2078]
[1680555926364,7.7168,1779.6,1779.1,3.2078]
[1680555926666,7.7168,1779.6,1779.0,2.23060457]
[1680555926958,7.7098,1779.4,1779.0,2.23060457]
[1680555927161,7.7098,1779.4,1778.7,3.2078]
[1680555927368,3.2078,1779.2,1778.7,3.2078]
[1680555927965,1.5,1779.1,1778.7,3.2078]
[1680555928169,3.2078,1779.2,1778.7,3.2078]
[1680555928365,3.2078,1779.2,1778.5,3.2078]
[1680555928569,3.2078,1779.0,1778.5,3.2078]
[1680555929758,1.5,1778.9,1778.5,3.2078]
[1680555930668,3.2078,1778.8,1778.3,3.2078]
[1680555932065,3.2078,1779.1,1778.3,3.2078]
[1680555932368,3.2078,1778.9,1778.3,3.2078]
[1680555932666,3.2078,1779.1,1778.3,3.2078]
[1680555932868,3.2078,1779.3,1778.7,3.2078]
[1680555933368,3.2078,1779.3,1778.8,2.19938003]
[1680555933966,3.2078,1779.1,1778.3,3.2078]
[1680555934459,3.2078,1778.9,1778.3,3.2078]
[1680555934766,1.5,1778.8,1778.3,3.2078]
[1680555935269,3.2078,1778.9,1778.3,3.2078]
[1680555936069,1.5,1778.8,1778.3,3.2078]
[1680555937158,3.2078,1778.9,1778.3,3.2078]
[1680555937868,3.2078,1778.7,1778.1,3.2078]
[1680555938767,1.5,1778.6,1778.1,3.2078]
[1680555939467,3.2078,1778.7,1778.1,3.2078]
[1680555940062,7.7168,1778.7,1778.1,3.2078]
[1680555940271,1.5,1778.6,1778.1,3.2078]
[1680555940773,7.7168,1778.5,1777.9,3.2078]
[1680555941368,3.2078,1778.3,1777.9,3.2078]
[1680555944577,4.509,1778.5,1777.9,3.2078]
[1680555945271,3.2078,1778.4,1777.9,3.2078]
[1680555945474,1.5,1778.3,1777.9,3.2078]
[1680555945663,1.5,1778.3,1777.7,3.2078]
[1680555946066,3.2078,1778.2,1777.7,3.2078]
[1680555947270,3.2078,1778.0,1777.5,3.2078]
[1680555948169,3.2078,1778.0,1777.6,1.23434311]
[1680555949175,3.2078,1778.0,1777.6,0.88234311]
[1680555949378,3.2078,1777.8,1777.7,1.19027384]
[1680555949767,3.2078,1777.8,1777.3,1.5]
[1680555949973,4.509,1778.1,1777.2,8.7988]
[1680555950167,8.1044,1778.3,1777.6,4.505]
[1680555950475,3.2078,1778.6,1777.9,5.591]
[1680555950680,3.2078,1778.6,1778.0,5.977]
[1680555950973,3.2078,1778.6,1778.0,4.477]
[1680555951177,3.2078,1778.6,1778.0,7.6848]
[1680555951473,3.2078,1778.6,1778.1,1.5]
[1680555951668,3.2078,1778.6,1778.0,7.6848]
[1680555952283,3.2078,1778.6,1778.0,3.2078]
[1680555952467,3.2078,1778.6,1777.6,5.29064708]
[1680555952468,7.7168,1778.6,1777.6,5.29064708]
[1680555952669,3.2078,1778.4,1777.6,3.2078]
[1680555953180,3.2078,1778.2,1777.6,3.2078]
[1680555953574,3.2078,1778.2,1777.4,8.7988]
[1680555953781,3.2078,1778.2,1777.3,5.06484708]
[1680555953976,1.5,1777.9,1777.3,4.482]
[1680555954279,1.5,1777.9,1777.2,3.2078]
[1680555954677,3.2078,1777.8,1777.2,3.2078]
[1680555955780,1.5,1778.1,1777.1,6.59184708]
[1680555955781,3.2078,1777.6,1777.1,3.2078]
[1680555955986,4.509,1777.2,1776.1,3.2078]
[1680555956188,3.2078,1776.5,1776.2,0.58468048]
[1680555956385,3.2078,1776.5,1776.1,3.79248048]
[1680555956576,3.2078,1776.5,1776.1,0.58468048]
[1680555956778,3.2078,1776.4,1776.1,0.58468048]
[1680555957085,3.2078,1776.4,1776.2,0.16463991]
[1680555958085,3.2078,1776.3,1776.2,0.16463991]
[1680555958389,3.2078,1776.5,1776.1,4.505]
[1680555958575,6.002,1777.2,1776.0,0.15]
[1680555958576,3.2078,1776.3,1776.0,0.15]
[1680555958772,4.509,1776.4,1776.0,0.15]
[1680555958773,3.2078,1776.1,1776.0,0.15]
[1680555959785,0.08912951,1776.2,1776.0,0.15]
[1680555959992,3.2078,1776.1,1776.0,0.15]
[1680555960678,0.15,1776.0,1775.3,0.58468048]
[1680555960990,3.2078,1775.8,1775.2,0.58468048]
[1680555961185,0.08912951,1776.2,1775.8,5.0]
[1680555961380,3.2078,1776.4,1776.0,4.509]
[1680555961580,9.305,1777.1,1776.2,4.477]
[1680555961581,3.2078,1776.6,1776.2,4.477]
[1680555962782,3.2078,1776.6,1776.1,0.24166328]
[1680555962986,3.2078,1776.6,1776.0,5.977]
[1680555963188,3.2078,1776.6,1776.2,4.509]
[1680555963485,3.2078,1776.6,1776.3,1.5]
[1680555963679,3.2078,1776.8,1776.4,10.1]
[1680555963877,9.2379,1777.5,1776.4,10.1]
[1680555963878,3.2078,1777.0,1776.4,10.1]
[1680555964381,3.2078,1777.0,1776.5,3.2078]
[1680555964582,3.2078,1777.0,1776.3,5.0]
[1680555964583,3.2078,1776.8,1776.3,9.509]
[1680555964781,3.2078,1776.8,1776.3,10.0782751]
[1680555964977,3.2078,1776.8,1776.3,5.2962751]
[1680555965182,4.504,1777.3,1776.3,4.8012751]
[1680555965183,3.2078,1777.0,1776.3,4.8012751]
[1680555965390,3.2078,1777.0,1776.4,3.2078]
[1680555965690,3.2078,1776.8,1776.2,3.2078]
[1680555966190,3.2078,1776.6,1776.2,3.2078]
[1680555966685,3.2078,1776.6,1776.1,4.73260037]
[1680555966686,3.2078,1776.6,1776.1,0.22360037]
[1680555966884,3.2078,1776.6,1775.9,1.5]
[1680555967077,3.2078,1776.6,1775.8,7.8853]
[1680555967273,3.2078,1776.8,1776.1,4.509]
[1680555967682,3.2078,1776.8,1776.3,4.509]
[1680555968285,3.2078,1776.8,1776.3,6.009]
[1680555968475,3.2078,1776.8,1776.3,11.6]
[1680555968674,3.2078,1776.8,1776.4,1.5]
[1680555968883,3.2078,1776.8,1776.3,11.6]
[1680555969090,3.2078,1777.1,1776.4,10.2988]
[1680555969487,3.2078,1777.1,1776.6,7.6898]
[1680555969981,3.2078,1777.1,1776.7,1.5]
[1680555970686,3.2078,1777.1,1776.7,7.091]
[1680555970883,3.2078,1777.3,1776.8,13.3078]
[1680555971077,3.2078,1777.3,1776.9,1.5]
[1680555971390,3.2078,1777.3,1776.9,7.091]
[1680555971587,3.2078,1777.5,1777.2,4.509]
[1680555971781,3.2078,1777.5,1777.3,1.5]
[1680555971982,3.2078,1777.5,1777.1,4.482]
[1680555972689,3.2078,1777.5,1777.0,3.2078]
[1680555973089,3.2078,1777.5,1777.1,1.5]
[1680555973283,3.2078,1777.5,1777.0,3.2078]
[1680555973686,3.2078,1777.5,1776.9,7.6450706]
[1680555973989,3.2078,1777.5,1777.1,4.509]
[1680555974180,3.2078,1777.7,1777.2,7.6848]
[1680555974376,3.2078,1777.7,1777.2,9.1848]
[1680555974878,3.2078,1777.7,1777.2,3.2078]
[1680555975082,3.2078,1777.7,1777.1,4.509]
[1680555975380,3.2078,1777.5,1777.1,4.509]
[1680555976093,3.2078,1777.3,1776.8,3.2078]
[1680555976385,3.2078,1777.1,1776.6,3.79248048]
[1680555976589,3.2078,1777.1,1776.6,3.2078]
[1680555976783,3.2078,1777.1,1776.5,0.58468048]
[1680555977792,3.2078,1777.1,1776.5,3.79248048]
[1680555978290,3.2078,1777.3,1776.6,6.92503858]
[1680555978485,3.2078,1777.3,1776.8,4.482]
[1680555978681,3.2078,1777.6,1776.9,3.2078]
[1680555978878,3.2078,1777.6,1777.0,4.509]
[1680555979094,3.2078,1777.6,1777.1,3.2078]
[1680555979385,3.2078,1777.6,1777.0,6.009]
[1680555979593,3.2078,1777.6,1777.0,4.509]
[1680555980182,3.2078,1777.6,1777.0,6.009]
[1680555980388,3.2078,1777.4,1777.0,6.009]
[1680555980778,3.2078,1777.4,1777.0,4.509]
[1680555980981,3.2078,1777.4,1776.9,3.2078]
[1680555981990,3.2078,1777.4,1776.9,3.79248048]
[1680555982889,3.2078,1777.2,1776.8,0.58468048]
[1680555983085,3.2078,1777.2,1776.6,5.0008593]
[1680555983280,3.2078,1777.2,1776.7,0.58468048]
[1680555983684,3.2078,1777.2,1776.6,5.0008593]
[1680555983884,3.2078,1777.4,1776.7,0.58468048]
[1680555984298,3.2078,1777.2,1776.7,0.58468048]
[1680555985589,3.2078,1777.0,1776.7,0.58468048]
[1680555985901,3.2078,1777.0,1776.6,0.3313581]
[1680555986590,3.2078,1776.8,1776.6,0.3313581]
[1680555987794,3.2078,1776.8,1776.4,0.58468048]
[1680555987988,3.2078,1776.6,1776.4,0.58468048]
[1680555989196,3.2078,1776.8,1776.4,0.58468048]
[1680555989501,3.2078,1776.8,1776.5,1.4617012]
[1680555989796,3.2078,1776.8,1776.5,0.58468048]
[1680555990399,3.2078,1776.8,1776.6,0.58468048]
[1680555992194,3.2078,1776.8,1776.5,0.58468048]
[1680555992394,0.57508584,1777.2,1776.5,0.58468048]
[1680555992395,3.2078,1777.0,1776.6,0.58468048]
[1680555992902,3.2078,1776.8,1776.6,0.58468048]
[1680555993898,3.2078,1776.8,1776.5,0.58468048]
[1680555994900,3.2078,1776.8,1776.5,1.4617012]
[1680555995202,3.2078,1776.8,1776.6,2.08468048]
[1680555995505,3.2078,1777.3,1776.7,0.58468048]
[1680555995710,3.2078,1777.3,1776.8,0.58468048]
[1680555996209,3.2078,1777.1,1776.7,1.4617012]
[1680555997102,3.2078,1776.9,1776.8,0.58468048]
[1680555997705,1.5,1777.3,1776.8,1.46397562]
[1680555997706,3.2078,1777.1,1776.8,1.46397562]
[1680555997901,3.2078,1777.1,1776.8,0.5869549]
[1680555998104,3.2078,1776.9,1776.8,0.5869549]
[1680555998603,3.2078,1777.1,1776.8,1.46397562]
[1680555998803,3.2078,1777.3,1776.9,0.5869549]
[1680555999004,3.2078,1777.1,1776.9,1.46397562]
[1680555999207,3.2078,1777.3,1777.0,0.87702072]
[1680555999507,3.2078,1777.3,1777.1,0.87525485]
[1680555999709,3.2078,1777.3,1777.1,1.75227557]
[1680556000212,3.2078,1777.3,1777.1,0.87525485]
[1680556000507,3.2078,1777.3,1777.2,0.58760553]
[1680556001103,3.2078,1777.5,1777.2,0.87702072]
[1680556001311,3.2078,1777.5,1777.3,0.5879497]
[1680556001498,3.2078,1777.5,1777.4,0.5879497]
[1680556002706,3.2078,1777.5,1777.3,0.5879497]
[1680556003517,3.2078,1777.7,1777.4,0.5879497]
[1680556003712,3.2078,1777.9,1777.6,0.58785329]
[1680556004604,3.2078,1777.7,1777.6,0.58785329]
[1680556005010,3.2078,1777.7,1777.5,1.46487401]
[1680556005416,3.2078,1777.7,1777.6,0.58785329]
[1680556006409,3.2078,1777.7,1777.5,1.46487401]
[1680556006612,3.2078,1777.7,1777.6,0.58785329]
[1680556007009,3.2078,1777.9,1777.6,0.58785329]
[1680556008312,3.2078,1777.9,1777.7,0.49002241]
[1680556008631,0.55894735,1778.1,1777.7,1.46487401]
[1680556008632,3.2078,1778.1,1777.7,1.46487401]
[1680556008820,3.2078,1778.1,1777.8,0.58785329]
[1680556009116,3.2078,1778.1,1777.8,2.08785329]
[1680556009315,3.2078,1778.1,1777.8,2.96487401]
[1680556009618,3.2078,1778.1,1777.8,0.58785329]
[1680556010019,3.2078,1777.9,1777.8,0.58785329]
[1680556010323,3.2078,1777.9,1777.6,1.46487401]
[1680556010511,3.2078,1777.9,1777.6,0.58785329]
[1680556010707,3.2078,1777.9,1777.7,0.58785329]
[1680556011222,3.2078,1778.1,1777.7,0.58785329]
[1680556011418,3.2078,1778.1,1777.7,1.46487401]
[1680556011722,3.2078,1778.1,1777.7,2.96487401]
[1680556011914,3.2078,1778.1,1777.8,0.58785329]
[1680556012218,3.2078,1778.3,1777.8,6.17267401]
[1680556012416,3.2078,1778.3,1777.9,1.5]
[1680556013217,3.2078,1778.5,1777.9,2.08785329]
[1680556013408,3.2078,1778.5,1778.0,3.79565329]
[1680556013613,3.2078,1778.5,1778.0,0.58785329]
[1680556014517,3.2078,1778.5,1777.9,0.58785329]
[1680556014721,2.20130046,1778.6,1777.9,0.58785329]
[1680556014722,3.2078,1778.3,1777.9,0.58785329]
[1680556015419,3.2078,1778.5,1778.0,0.58785329]
[1680556015921,3.2078,1778.5,1778.0,3.79565329]
[1680556016221,3.2078,1778.5,1778.0,0.58785329]
[1680556016425,3.2078,1778.5,1777.9,2.08785329]
[1680556016620,3.2078,1778.5,1777.9,0.58785329]
[1680556016920,3.77421402,1778.5,1777.9,0.58785329]
[1680556017114,3.77421402,1778.5,1777.9,2.08785329]
[1680556017315,3.77421402,1778.5,1777.9,0.58785329]
[1680556018227,3.2078,1778.3,1777.9,0.58785329]
[1680556018429,3.2078,1778.3,1777.8,6.73318531]
[1680556018726,3.2078,1778.3,1777.8,5.23318531]
[1680556019425,8.25191435,1778.7,1777.9,0.58785329]
[1680556019426,3.2078,1778.5,1777.9,0.58785329]
[1680556019931,3.2078,1778.5,1777.9,2.08785329]
[1680556020417,3.2078,1778.5,1778.0,3.2078]
[1680556020820,3.2078,1778.5,1778.1,1.5]
[1680556021723,3.2078,1778.5,1777.9,2.08785329]
[1680556021922,3.2078,1778.5,1777.8,2.02538531]
[1680556022123,3.2078,1778.2,1777.9,2.249]
[1680556023029,3.2078,1778.2,1778.0,0.5187943]
[1680556024332,2.249,1778.2,1778.0,0.5187943]
[1680556024526,2.249,1778.1,1777.7,0.58785329]
[1680556024826,5.4568,1777.8,1777.3,0.58785329]
[1680556025023,2.249,1777.4,1777.2,0.58785329]
[1680556025723,4.7078,1777.3,1777.1,1.46487401]
[1680556026132,4.7078,1777.3,1777.1,0.58785329]
[1680556026322,2.249,1777.2,1777.0,0.58785329]
[1680556026528,5.4568,1777.1,1776.9,0.58785329]
[1680556026730,1.5,1777.0,1776.8,0.58785329]
[1680556026929,3.2078,1776.9,1776.8,0.58785329]
[1680556027124,3.2078,1776.9,1776.7,1.46487401]
[1680556027329,3.2078,1776.9,1776.7,0.58785329]
[1680556027831,1.5,1776.8,1776.5,0.58785329]
[1680556028032,3.2078,1776.6,1776.5,0.58785329]
[1680556028632,3.2078,1776.6,1776.4,1.46487401]
[1680556029032,7.7098,1776.6,1776.3,1.46487401]
[1680556029233,3.2078,1776.4,1776.3,0.58785329]
[1680556030435,3.2078,1776.4,1776.2,0.58785329]
[1680556031149,1.5,1776.3,1776.2,0.58785329]
[1680556031643,1.5,1776.3,1776.1,0.58785329]
[1680556031824,3.2078,1776.2,1776.0,0.58785329]
[1680556032025,3.93195685,1776.2,1776.0,0.58785329]
[1680556032837,3.93195685,1776.2,1775.9,1.46487401]
[1680556033133,0.72415685,1776.2,1775.9,0.87702072]
[1680556033440,0.72415685,1776.2,1776.0,0.58571882]
[1680556033931,3.2078,1776.1,1776.0,0.58571882]
[1680556034530,3.2078,1776.1,1775.9,0.58571882]
[1680556036532,3.2078,1776.1,1775.8,1.46273954]
[1680556037241,3.2078,1775.9,1775.8,0.58571882]
[1680556037435,3.2078,1775.9,1775.7,0.87702072]
[1680556037436,3.2078,1775.9,1775.7,0.58571882]
[1680556038334,0.928623,1775.8,1775.7,0.58571882]
[1680556038644,3.2078,1775.9,1775.6,0.58571882]
[1680556040448,3.2078,1776.4,1775.8,4.46]
[1680556040750,3.2078,1776.6,1775.9,9.38451882]
[1680556040939,3.2078,1776.4,1775.9,3.79351882]
[1680556041329,7.7098,1776.2,1775.8,0.58571882]
[1680556041538,7.7098,1776.2,1775.6,0.58571882]
[1680556041734,1.5,1776.1,1775.5,4.67053954]
[1680556041943,3.2078,1776.0,1775.6,0.58571882]
[1680556042650,3.2078,1776.0,1775.5,0.58571882]
[1680556042943,3.2078,1776.0,1775.5,1.46273954]
[1680556043332,3.2078,1775.8,1775.5,0.58571882]
[1680556043739,0.88984432,1775.7,1775.5,0.58571882]
[1680556045841,0.88984432,1775.7,1775.4,2.03534319]
[1680556046344,0.88984432,1775.7,1775.5,0.58571882]
[1680556046541,0.88984432,1775.7,1775.4,1.15832247]
[1680556046745,3.2078,1776.3,1775.6,10.093]
[1680556046947,0.52259817,1776.2,1775.6,10.67871882]
[1680556047239,3.2078,1776.3,1775.7,15.19949861]
[1680556047444,3.2078,1776.3,1775.8,1.5]
[1680556047645,3.2078,1776.5,1775.8,1.5]
[1680556047846,0.43703642,1776.2,1775.9,13.3008]
[1680556048041,3.2078,1776.7,1776.1,8.7988]
[1680556048441,3.2078,1776.7,1776.3,13.2828]
[1680556048748,3.2078,1777.1,1776.5,8.7988]
[1680556049043,3.2078,1777.1,1776.6,4.502]
[1680556049242,3.75761519,1777.3,1776.6,10.093]
[1680556049435,3.2078,1777.3,1776.8,1.5]
[1680556049847,3.2078,1777.3,1776.7,3.2078]
[1680556050050,3.2078,1777.3,1776.7,4.7078]
[1680556050646,3.2078,1777.3,1776.7,3.2078]
[1680556050851,3.2078,1777.3,1776.7,4.7078]
[1680556051147,3.2078,1777.3,1776.8,1.5]
[1680556051535,3.2078,1777.3,1776.7,4.7078]
[1680556052146,3.2078,1777.3,1776.7,1.5]
[1680556052346,3.2078,1777.1,1776.7,1.5]
[1680556053050,3.2078,1777.3,1776.7,10.2988]
[1680556053246,3.2078,1777.5,1776.9,3.2078]
[1680556053438,3.2078,1777.5,1776.9,8.7988]
[1680556053639,3.2078,1777.7,1777.1,3.2078]
[1680556053853,3.2078,1777.7,1777.1,8.7988]
[1680556054357,3.2078,1777.7,1777.1,3.2078]
[1680556054550,3.2078,1777.7,1777.2,0.19344547]
[1680556055254,3.2078,1777.7,1777.0,1.5]
[1680556055450,3.2078,1777.7,1777.1,3.2078]
[1680556055842,3.2078,1777.5,1776.9,3.2078]
[1680556056865,3.2078,1777.5,1776.9,4.7078]
[1680556057152,3.2078,1777.7,1777.0,7.091]
[1680556057355,3.2078,1777.7,1777.1,4.7078]
[1680556057548,3.2078,1777.7,1777.1,3.2078]
[1680556058751,3.2078,1777.7,1777.1,4.7078]
[1680556059150,3.2078,1777.7,1777.1,3.2078]
[1680556061056,3.2078,1777.7,1777.2,1.5]
[1680556061358,3.2078,1777.7,1777.1,3.2078]
[1680556062659,3.2078,1777.7,1777.1,3.77259468]
[1680556065857,3.2078,1777.5,1777.1,3.77259468]
[1680556067155,3.2078,1777.7,1777.1,13.84759468]
[1680556067363,3.2078,1777.7,1777.3,5.591]
[1680556067562,3.2078,1777.7,1777.2,7.76400176]
[1680556067762,3.2078,1777.7,1777.2,13.35500176]
[1680556068261,3.2078,1777.7,1777.3,0.15903017]
[1680556068965,3.2078,1777.7,1777.1,8.25659468]
[1680556069168,3.2078,1777.7,1777.1,0.56479468]
[1680556069359,1.5,1778.0,1776.8,2.67115057]
[1680556069360,3.2078,1777.3,1776.8,0.58571882]
[1680556069869,3.2078,1777.3,1776.7,5.22656115]
[1680556070072,3.2078,1777.3,1776.7,4.34954043]
[1680556070670,3.2078,1777.1,1776.6,0.58571882]
[1680556070869,3.2078,1777.1,1776.5,4.08482072]
[1680556070870,3.2078,1776.9,1776.5,0.58571882]
[1680556071068,3.2078,1776.7,1776.4,0.58571882]
[1680556071266,3.2078,1776.7,1776.3,0.58571882]
[1680556072163,3.2078,1776.5,1776.2,2.08571882]
[1680556072464,3.2078,1776.5,1776.2,0.58571882]
[1680556074971,3.2078,1776.7,1776.2,1.46273954]
[1680556075171,3.2078,1776.7,1776.2,0.58571882]
[1680556075371,3.2078,1776.5,1776.2,0.58571882]
[1680556075983,3.2078,1776.7,1776.2,1.46273954]
[1680556076577,3.2078,1776.6,1776.3,0.58571882]
[1680556076875,5.967,1777.1,1776.3,0.58571882]
[1680556076876,3.2078,1776.9,1776.4,0.58571882]
[1680556077177,3.2078,1776.9,1776.4,2.08571882]
[1680556077377,3.2078,1776.9,1776.4,0.58571882]
[1680556078879,3.2078,1777.1,1776.5,0.58571882]
[1680556079178,3.2078,1777.1,1776.5,2.96273954]
[1680556079375,3.2078,1777.1,1776.5,6.17053954]
[1680556079571,3.2078,1777.1,1776.6,0.58571882]
[1680556080771,3.2078,1777.1,1776.6,2.08571882]
[1680556080973,3.2078,1777.3,1776.7,5.591]
[1680556081170,3.2078,1777.3,1776.8,1.5]
[1680556081375,3.2078,1777.3,1776.8,2.08571882]
[1680556081578,3.2078,1777.3,1776.8,0.58571882]
[1680556082280,3.2078,1777.3,1776.7,3.79351882]
[1680556082877,3.2078,1777.3,1776.7,0.58571882]
[1680556083078,3.2078,1777.1,1776.7,0.58571882]
[1680556084478,0.08985991,1777.2,1776.9,3.79351882]
[1680556084780,3.77461838,1777.5,1777.0,0.63934663]
[1680556085281,3.2078,1777.5,1777.1,3.2078]
[1680556085487,3.2078,1777.7,1777.1,3.2078]
[1680556085672,3.2078,1777.7,1777.1,4.67053954]
[1680556086075,3.2078,1777.7,1777.3,3.2078]
[1680556086370,3.2078,1777.7,1777.2,3.79351882]
[1680556087279,3.2078,1777.7,1777.2,13.88651882]
[1680556087481,3.76846009,1777.9,1777.4,3.2078]
[1680556087781,3.2078,1777.9,1777.4,7.7098]
[1680556087981,3.2078,1778.1,1777.6,3.2078]
[1680556088374,0.55050625,1778.4,1777.5,6.002]
[1680556088375,3.2078,1778.3,1777.8,3.2078]
[1680556088770,3.2078,1778.5,1777.8,3.2078]
[1680556088986,3.2078,1778.5,1777.8,4.7078]
[1680556089180,3.2078,1778.5,1777.8,3.2078]
[1680556090482,3.2078,1778.5,1778.0,3.2078]
[1680556091382,3.2078,1778.5,1778.1,5.591]
[1680556091691,3.2078,1779.2,1778.4,8.7988]
[1680556091872,3.77384668,1779.4,1778.7,7.7098]
[1680556092073,3.77384668,1779.4,1778.9,2.246]
[1680556092475,0.56604668,1779.3,1778.9,2.246]
[1680556093188,3.77384668,1779.4,1778.9,2.246]
[1680556093480,3.2078,1779.4,1778.9,7.837]
[1680556093786,3.2078,1779.4,1779.1,5.4538]
[1680556093976,3.2078,1779.4,1779.1,11.0448]
[1680556094183,3.2078,1779.6,1779.2,1.5]
[1680556094479,3.2078,1779.6,1779.1,11.0448]
[1680556095087,3.75905994,1779.6,1779.1,11.0448]
[1680556095482,3.75905994,1779.6,1779.2,1.5]
[1680556095783,3.2078,1779.6,1779.3,2.233]
[1680556096780,7.10292171,1780.1,1779.5,2.244]
[1680556096781,3.2078,1779.8,1779.5,2.244]
[1680556098078,1.6536451,1780.1,1779.6,1.32007403]
[1680556098284,13.0166,1780.4,1780.0,2.238]
[1680556098487,3.2078,1780.4,1780.0,2.238]
[1680556099574,5.4558,1780.4,1779.8,2.233]
[1680556099984,3.2078,1780.2,1779.8,2.233]
[1680556100187,5.4418,1780.2,1779.6,3.55807403]
[1680556100481,3.2078,1780.2,1779.7,5.4408]
[1680556100683,3.2078,1780.2,1779.9,2.244]
[1680556101084,3.2078,1780.4,1779.9,5.4518]
[1680556101292,3.2078,1780.4,1780.1,2.233]
[1680556101979,3.2078,1780.4,1780.0,1.5]
[1680556102184,3.2078,1780.4,1780.2,2.244]
[1680556102585,3.2078,1780.6,1780.2,2.244]
[1680556103597,3.2078,1780.6,1780.4,2.233]
[1680556103782,3.2078,1780.6,1780.5,1.5]
[1680556104591,3.2078,1780.6,1780.5,3.738]
[1680556104792,3.2078,1780.6,1780.5,2.238]
[1680556105890,3.2078,1780.6,1780.3,2.233]
[1680556106397,3.2078,1780.6,1780.1,3.77467329]
[1680556106398,3.2078,1780.6,1780.2,1.5]
[1680556106597,3.2078,1780.6,1780.1,6.01867329]
[1680556107188,3.2078,1780.6,1780.1,11.60967329]
[1680556107386,0.56524515,1780.8,1780.1,11.60967329]
[1680556107387,3.77304515,1780.8,1780.5,2.248]
[1680556107589,3.2078,1780.8,1780.5,2.248]
[1680556110899,3.91105736,1781.0,1780.5,2.248]
[1680556111097,3.91105736,1781.0,1780.3,3.2078]
[1680556111098,2.237,1780.6,1780.1,0.56687329]
[1680556111402,5.4448,1780.6,1780.1,3.2078]
[1680556111592,6.15905736,1781.0,1780.3,2.248]
[1680556111799,0.70325736,1781.0,1780.6,2.233]
[1680556112300,0.70325736,1781.0,1780.7,3.2078]
[1680556112798,0.70325736,1781.0,1780.6,2.233]
[1680556113300,0.70325736,1781.0,1780.7,1.48477602]
[1680556113504,0.70325736,1781.0,1780.7,4.69257602]
[1680556114197,0.70325736,1781.0,1780.7,0.92307602]
[1680556114502,0.70325736,1781.0,1780.7,1.49890473]
[1680556114503,2.248,1780.8,1780.7,1.49890473]
[1680556114901,2.248,1780.8,1780.2,5.4458]
[1680556115105,1.498,1780.7,1780.2,5.4458]
[1680556115306,1.498,1780.7,1780.3,1.42686262]
[1680556115498,2.248,1780.6,1780.3,1.42686262]
[1680556115698,1.5,1780.5,1780.3,1.42686262]
[1680556115898,2.248,1780.6,1780.3,1.42686262]
[1680556116205,2.248,1780.7,1780.2,3.2078]
[1680556117400,3.2078,1780.6,1780.1,2.236]
[1680556117612,2.248,1780.5,1779.9,2.248]
[1680556117807,1.5,1780.4,1780.0,3.2078]
[1680556118304,1.5,1780.4,1779.8,7.941]
[1680556118305,2.234,1780.3,1779.8,7.941]
[1680556118510,2.234,1780.3,1779.8,3.2078]
[1680556119599,2.234,1780.3,1780.0,3.2078]
[1680556119801,2.234,1780.3,1779.8,3.2078]
[1680556121510,2.06232863,1780.5,1779.5,5.4438]
[1680556121511,2.234,1780.1,1779.5,5.4438]
[1680556121822,3.742,1780.0,1779.6,0.82667219]
[1680556122004,2.242,1780.0,1779.6,0.82667219]
[1680556122412,2.234,1780.3,1779.7,2.233]
[1680556122611,2.234,1780.3,1779.7,5.4408]
[1680556122909,0.56232863,1780.5,1780.2,3.2078]
[1680556123117,5.4558,1780.6,1780.0,5.4558]
[1680556123306,5.4558,1780.6,1780.0,2.248]
[1680556123508,2.247,1780.4,1779.8,5.4558]
[1680556123712,2.247,1780.4,1780.0,3.2078]
[1680556125312,2.242,1780.1,1779.6,0.82667219]
[1680556125514,2.248,1779.9,1779.6,0.82667219]
[1680556125713,3.2078,1779.8,1779.6,0.82667219]
[1680556126718,5.4548,1780.1,1779.6,0.82667219]
[1680556126919,5.4558,1780.3,1779.6,3.06267219]
[1680556127119,5.4558,1780.3,1779.7,3.2078]
[1680556128217,6.9558,1780.3,1779.8,1.05236794]
[1680556128721,5.4558,1780.3,1779.8,1.05236794]
[1680556128921,3.2078,1780.3,1779.8,3.29036794]
[1680556129622,2.248,1780.2,1779.8,1.05236794]
[1680556129919,3.748,1780.2,1779.6,2.236]
[1680556130122,2.248,1780.2,1779.6,2.236]
[1680556130921,2.248,1780.2,1779.7,3.2078]
[1680556131215,2.248,1780.2,1779.6,2.236]
[1680556132419,2.248,1780.2,1779.6,5.4438]
[1680556133323,2.80896788,1780.4,1780.0,2.248]
[1680556133619,3.2078,1780.5,1780.0,2.248]
[1680556135110,3.77611159,1780.5,1780.0,2.248]
[1680556135317,3.77611159,1780.5,1780.0,3.748]
[1680556135516,3.77611159,1780.5,1780.1,3.2078]
[1680556135723,3.77611159,1780.5,1780.0,2.248]
[1680556136121,6.02411159,1780.5,1779.9,2.248]
[1680556136315,6.59015827,1780.5,1779.9,2.248]
[1680556136521,2.234,1780.1,1779.4,5.23971719]
[1680556136715,2.234,1780.1,1779.5,2.246]
[1680556137326,5.4418,1780.1,1779.5,2.246]
[1680556138225,3.2078,1779.9,1779.5,2.246]
[1680556138816,5.4418,1780.1,1779.7,2.233]
[1680556139015,3.2078,1780.1,1779.7,2.233]
[1680556139328,3.2078,1780.1,1779.7,5.4408]
[1680556140931,3.77384668,1780.1,1779.7,5.4408]
[1680556141121,3.2078,1780.1,1779.7,5.4408]
[1680556141317,3.77384668,1780.1,1779.7,5.4408]